fUSD/lending_fUSD_20250606
["ID","MTS","AMOUNT","RATE_DAILY","PERIOD"]
[364744701,1749227438470,-3588.55519907,0.00026403,2]
[364744703,1749227438479,-2244.87287491,0.00026456,2]
[364744705,1749227438489,-1000.0,0.00026548,2]
[364744707,1749227438498,-1000.0,0.00026548,2]
[364744709,1749227438507,-502.2800896,0.00026548,2]
[364744711,1749227438516,-726.86776221,0.000269,16]
[364744713,1749227438525,-3588.55519907,0.00026905,2]
[364744715,1749227438534,-218.73010097,0.00027,2]
[364744717,1749227438544,-1500.0,0.00027096,2]
[364744719,1749227438553,-161.18264395,0.00027304,2]
[364744721,1749227438562,-726.86776214,0.00027348,16]
[364744723,1749227438572,-480.0,0.00027397,5]
[364744725,1749227438581,-4587.21,0.00027397,5]
[364744727,1749227438591,-480.0,0.00027397,5]
[364744729,1749227438601,-1698.9,0.00027397,5]
[364744731,1749227438610,-795.67,0.00027397,5]
[364744734,1749227438620,-1782.25,0.00027397,5]
[364744736,1749227438630,-500.0,0.00027397,2]
[364744737,1749227438640,-500.0,0.00027397,2]
[364744739,1749227438652,-500.0,0.00027397,2]
[364744741,1749227438665,-500.0,0.00027397,2]
[364744743,1749227438674,-370.51266153,0.00027397,2]
[364744745,1749227438683,-500.0,0.00027397,2]
[364744747,1749227438693,-500.0,0.00027397,2]
[364744749,1749227438702,-500.0,0.00027397,2]
[364744751,1749227438711,-500.0,0.00027397,2]
[364744752,1749227438720,-500.0,0.00027397,2]
[364744753,1749227438729,-500.0,0.00027397,2]
[364744754,1749227438738,-897.82,0.00027397,5]
[364744755,1749227438747,-950.52,0.00027397,5]
[364744756,1749227438756,-480.0,0.00027397,2]
[364744757,1749227438765,-480.0,0.00027397,3]
[364744758,1749227438774,-1314.64,0.00027397,5]
[364744759,1749227438785,-480.0,0.00027397,5]
[364744760,1749227438795,-808.41,0.00027397,5]
[364744761,1749227438807,-4664.58,0.00027397,5]
[364744762,1749227438817,-573.94,0.00027397,5]
[364744763,1749227438827,-500.0,0.00027397,2]
[364744764,1749227438836,-500.0,0.00027397,2]
[364744765,1749227438846,-500.0,0.00027397,2]
[364744766,1749227438856,-500.0,0.00027397,2]
[364744767,1749227438865,-500.0,0.00027397,2]
[364744768,1749227438875,-258.21609175,0.00027397,2]
[364744769,1749227438887,-480.0,0.00027397,5]
[364744770,1749227438897,-1107.97,0.00027397,5]
[364744771,1749227438906,-480.0,0.00027397,5]
[364744772,1749227438917,-4442.11,0.00027397,5]
[364744773,1749227438926,-757.84,0.00027397,5]
[364744774,1749227438936,-480.0,0.00027397,5]
[364744775,1749227438945,-480.0,0.00027397,5]
[364744776,1749227438954,-480.0,0.00027397,5]
[364744777,1749227438963,-3114.45,0.00027397,7]
[364744778,1749227438972,-480.0,0.00027397,5]
[364744779,1749227438981,-480.0,0.00027397,5]
[364744780,1749227438990,-406.43104568,0.00027397,5]
[364744781,1749227438999,-1235.4,0.00027397,5]
[364744782,1749227439008,-879.42,0.00027397,5]
[364744783,1749227439018,-1063.27,0.00027397,5]
[364744784,1749227439027,-707.79,0.00027397,2]
[364744785,1749227439035,-480.0,0.00027397,5]
[364744786,1749227439046,-483.32356621,0.00027397,5]
[364744787,1749227439055,-168.67287334,0.00027397,5]
[364744788,1749227439065,-480.0,0.00027397,5]
[364744789,1749227439074,-2227.4,0.00027397,5]
[364744790,1749227439083,-480.0,0.00027397,5]
[364744791,1749227439093,-884.44,0.00027397,5]
[364744792,1749227439102,-480.0,0.00027397,5]
[364744793,1749227439111,-480.0,0.00027397,5]
[364744794,1749227439120,-949.13,0.00027397,2]
[364744795,1749227439129,-480.0,0.00027397,5]
[364744796,1749227439137,-480.0,0.00027397,5]
[364744797,1749227439146,-480.0,0.00027397,5]
[364744798,1749227439155,-460.0,0.00027397,5]
[364744799,1749227439164,-480.0,0.00027397,5]
[364744800,1749227439173,-506.97641665,0.00027397,5]
[364744801,1749227439182,-430.44741384,0.00027397,5]
[364744802,1749227439191,-1185.65,0.00027397,5]
[364744803,1749227439200,-153.84655,0.00027397,5]
[364744804,1749227439209,-487.20306759,0.00027397,5]
[364744805,1749227439218,-480.0,0.00027397,5]
[364744806,1749227439226,-480.0,0.00027397,5]
[364744807,1749227439235,-480.0,0.00027397,5]
[364744808,1749227439244,-785.68,0.00027397,5]
[364744809,1749227439253,-480.0,0.00027397,5]
[364744810,1749227439262,-485.80195335,0.00027397,5]
[364744811,1749227439271,-484.24023923,0.00027397,5]
[364744812,1749227439280,-480.0,0.00027397,5]
[364744813,1749227439288,-335.7994555,0.00027397,5]
[364744814,1749227439298,-368.48803439,0.00027397,5]
[364744815,1749227439307,-1314.76,0.00027397,5]
[364744816,1749227439317,-154.81,0.00027397,2]
[364744817,1749227439326,-3588.55519907,0.00027408,2]
[364744818,1749227439337,-2244.87287491,0.00027549,2]
[364744819,1749227439348,-525.14939861,0.00027561,5]
[364744820,1749227439358,-4587.21,0.00027561,5]
[364744821,1749227439367,-480.0,0.00027561,5]
[364744822,1749227439376,-1698.9,0.00027561,5]
[364744823,1749227439386,-795.67,0.00027561,5]
[364744824,1749227439396,-1782.25,0.00027561,5]
[364744825,1749227439405,-897.82,0.00027561,5]
[364744826,1749227439414,-950.52,0.00027561,5]
[364744827,1749227439423,-1314.64,0.00027561,5]
[364744828,1749227439432,-480.0,0.00027561,5]
[364744829,1749227439442,-808.41,0.00027561,5]
[364744830,1749227439451,-4664.58,0.00027561,5]
[364744831,1749227439460,-573.94,0.00027561,5]
[364744832,1749227439470,-480.0,0.00027561,5]
[364744833,1749227439479,-1107.97,0.00027561,5]
[364744834,1749227439488,-4442.11,0.00027561,5]
[364744835,1749227439497,-757.84,0.00027561,5]
[364744836,1749227439506,-480.0,0.00027561,5]
[364744837,1749227439516,-480.0,0.00027561,5]
[364744838,1749227439525,-480.0,0.00027561,5]
[364744839,1749227439535,-1235.4,0.00027561,5]
[364744840,1749227439544,-879.42,0.00027561,5]
[364744841,1749227439554,-1063.27,0.00027561,5]
[364744842,1749227439563,-707.79,0.00027561,2]
[364744843,1749227439573,-2227.4,0.00027561,5]
[364744844,1749227439582,-884.44,0.00027561,5]
[364744845,1749227439592,-480.0,0.00027561,5]
[364744846,1749227439601,-949.13,0.00027561,2]
[364744847,1749227439611,-480.0,0.00027561,5]
[364744848,1749227439620,-480.0,0.00027561,5]
[364744849,1749227439629,-480.0,0.00027561,5]
[364744850,1749227439638,-480.0,0.00027561,5]
[364744851,1749227439647,-1185.65,0.00027561,5]
[364744852,1749227439655,-480.0,0.00027561,5]
[364744853,1749227439664,-785.68,0.00027561,5]
[364744855,1749227439674,-480.0,0.00027561,5]
[364744857,1749227439683,-480.0,0.00027561,5]
[364744858,1749227439694,-1314.76,0.00027561,5]
[364744859,1749227439710,-2000.0,0.00027644,5]
[364744860,1749227439733,-4587.21,0.00027726,5]
[364744861,1749227439742,-480.0,0.00027726,5]
[364744862,1749227439752,-1698.9,0.00027726,5]
[364744863,1749227439761,-795.67,0.00027726,5]
[364744864,1749227439770,-1782.25,0.00027726,5]
[364744865,1749227439780,-897.82,0.00027726,5]
[364744866,1749227439790,-950.52,0.00027726,5]
[364744867,1749227439802,-1314.64,0.00027726,5]
[364744868,1749227439811,-480.0,0.00027726,5]
[364744869,1749227439821,-808.41,0.00027726,5]
[364744870,1749227439831,-4664.58,0.00027726,5]
[364744871,1749227439841,-573.94,0.00027726,5]
[364744872,1749227439852,-480.0,0.00027726,5]
[364744873,1749227439862,-1107.97,0.00027726,5]
[364744874,1749227439872,-4442.11,0.00027726,5]
[364744875,1749227439883,-757.84,0.00027726,5]
[364744876,1749227439893,-439.98438175,0.00027726,5]
[364744877,1749227439902,-480.0,0.00027726,5]
[364744878,1749227439913,-480.0,0.00027726,5]
[364744879,1749227439923,-1235.4,0.00027726,5]
[364744880,1749227439933,-879.42,0.00027726,5]
[364744881,1749227439943,-1063.27,0.00027726,5]
[364744882,1749227439953,-707.79,0.00027726,2]
[364744883,1749227439963,-2227.4,0.00027726,5]
[364744884,1749227439973,-884.44,0.00027726,5]
[364744885,1749227439983,-480.0,0.00027726,5]
[364744886,1749227439993,-949.13,0.00027726,2]
[364744887,1749227440003,-480.0,0.00027726,5]
[364744888,1749227440012,-480.0,0.00027726,5]
[364744889,1749227440022,-480.0,0.00027726,5]
[364744890,1749227440031,-480.0,0.00027726,5]
[364744891,1749227440041,-365.51950285,0.00027726,5]
[364744892,1749227440052,-1185.65,0.00027726,5]
[364744893,1749227440062,-785.68,0.00027726,5]
[364744894,1749227440071,-480.0,0.00027726,5]
[364744895,1749227440082,-1314.76,0.00027726,5]
[364744896,1749227440091,-201.0,0.00027752,7]
[364744897,1749227440101,-726.86776214,0.00027797,17]
[364744898,1749227440112,-1000.0,0.00027812,2]
[364744899,1749227440122,-161.39,0.00027844,2]
[364744900,1749227440132,-4587.21,0.0002789,5]
[364744901,1749227440142,-480.0,0.0002789,5]
[364744902,1749227440152,-1698.9,0.0002789,5]
[364744903,1749227440162,-795.67,0.0002789,5]
[364744904,1749227440172,-1782.25,0.0002789,5]
[364744905,1749227440184,-897.82,0.0002789,5]
[364744906,1749227440195,-950.52,0.0002789,5]
[364744907,1749227440204,-1314.64,0.0002789,5]
[364744908,1749227440215,-480.0,0.0002789,5]
[364744909,1749227440224,-808.41,0.0002789,5]
[364744910,1749227440234,-4664.58,0.0002789,5]
[364744911,1749227440244,-573.94,0.0002789,5]
[364744912,1749227440253,-480.0,0.0002789,5]
[364744913,1749227440263,-1107.97,0.0002789,5]
[364744914,1749227440273,-4442.11,0.0002789,5]
[364744915,1749227440283,-757.84,0.0002789,5]
[364744916,1749227440293,-480.0,0.0002789,5]
[364744917,1749227440303,-480.0,0.0002789,5]
[364744918,1749227440313,-1235.4,0.0002789,5]
[364744919,1749227440323,-879.42,0.0002789,5]
[364744920,1749227440332,-1063.27,0.0002789,5]
[364744921,1749227440342,-707.79,0.0002789,2]
[364744922,1749227440351,-2227.4,0.0002789,5]
[364744923,1749227440361,-884.44,0.0002789,5]
[364744924,1749227440370,-497.3887721,0.0002789,5]
[364744925,1749227440380,-480.0,0.0002789,5]
[364744926,1749227440390,-949.13,0.0002789,2]
[364744927,1749227440399,-480.0,0.0002789,5]
[364744928,1749227440409,-480.0,0.0002789,5]
[364744929,1749227440418,-1185.65,0.0002789,5]
[364744930,1749227440427,-785.68,0.0002789,5]
[364744931,1749227440437,-480.0,0.0002789,5]
[364744932,1749227440447,-1314.76,0.0002789,5]
[364744933,1749227440457,-200.0,0.00027904,2]
[364744934,1749227440467,-3588.55519907,0.00027911,2]
[364744935,1749227440477,-4587.21,0.00028054,5]
[364744937,1749227440487,-1698.9,0.00028054,5]
[364744939,1749227440496,-795.67,0.00028054,5]
[364744940,1749227440506,-1782.25,0.00028054,5]
[364744941,1749227440518,-897.82,0.00028054,5]
[364744942,1749227440530,-950.52,0.00028054,5]
[364744943,1749227440540,-1314.64,0.00028054,5]
[364744944,1749227440550,-808.41,0.00028054,5]
[364744945,1749227440562,-4664.58,0.00028054,5]
[364744946,1749227440572,-573.94,0.00028054,5]
[364744947,1749227440581,-480.0,0.00028054,5]
[364744948,1749227440591,-1107.97,0.00028054,5]
[364744950,1749227440600,-4442.11,0.00028054,5]
[364744952,1749227440610,-757.84,0.00028054,5]
[364744953,1749227440619,-480.0,0.00028054,5]
[364744954,1749227440631,-1235.4,0.00028054,5]
[364744955,1749227440642,-879.42,0.00028054,5]
[364744956,1749227440654,-1063.27,0.00028054,5]
[364744957,1749227440664,-707.79,0.00028054,2]
[364744958,1749227440674,-2227.4,0.00028054,5]
[364744959,1749227440684,-884.44,0.00028054,5]
[364744960,1749227440694,-480.0,0.00028054,5]
[364744961,1749227440704,-949.13,0.00028054,2]
[364744962,1749227440714,-480.0,0.00028054,5]
[364744963,1749227440723,-1185.65,0.00028054,5]
[364744964,1749227440734,-785.68,0.00028054,5]
[364744965,1749227440744,-480.0,0.00028054,5]
[364744966,1749227440754,-1314.76,0.00028054,5]
[364744967,1749227440764,-321.51,0.00028111,2]
[364744968,1749227440774,-1503.60598671,0.00028192,5]
[364744969,1749227440784,-4587.21,0.00028219,5]
[364744970,1749227440794,-1698.9,0.00028219,5]
[364744971,1749227440807,-795.67,0.00028219,5]
[364744972,1749227440818,-1782.25,0.00028219,5]
[364744973,1749227440828,-897.82,0.00028219,5]
[364744974,1749227440838,-950.52,0.00028219,5]
[364744975,1749227440853,-1314.64,0.00028219,5]
[364744976,1749227440866,-808.41,0.00028219,5]
[364744977,1749227440878,-4664.58,0.00028219,5]
[364744978,1749227440893,-573.94,0.00028219,5]
[364744979,1749227440903,-480.0,0.00028219,5]
[364744980,1749227440913,-1107.97,0.00028219,5]
[364744981,1749227440924,-4442.11,0.00028219,5]
[364744982,1749227440934,-757.84,0.00028219,5]
[364744983,1749227440945,-480.0,0.00028219,5]
[364744984,1749227440955,-1235.4,0.00028219,5]
[364744985,1749227440965,-879.42,0.00028219,5]
[364744986,1749227440975,-1063.27,0.00028219,5]
[364744987,1749227440986,-707.79,0.00028219,2]
[364744988,1749227440996,-2227.4,0.00028219,5]
[364744989,1749227441006,-884.44,0.00028219,5]
[364744990,1749227441016,-460.0,0.00028219,5]
[364744991,1749227441026,-949.13,0.00028219,2]
[364744992,1749227441036,-480.0,0.00028219,5]
[364744993,1749227441046,-1185.65,0.00028219,5]
[364744994,1749227441055,-785.68,0.00028219,5]
[364744995,1749227441065,-546.00460795,0.00028219,5]
[364744996,1749227441075,-1314.76,0.00028219,5]
[364744997,1749227441086,-726.86776214,0.00028245,18]
[364744998,1749227441097,-5471.57,0.00028269,2]
[364744999,1749227441107,-4587.21,0.00028383,5]
[364745000,1749227441117,-1698.9,0.00028383,5]
[364745001,1749227441126,-795.67,0.00028383,5]
[364745002,1749227441136,-1782.25,0.00028383,5]
[364745003,1749227441146,-897.82,0.00028383,5]
[364745004,1749227441156,-950.52,0.00028383,5]
[364745005,1749227441165,-1314.64,0.00028383,5]
[364745006,1749227441175,-808.41,0.00028383,5]
[364745007,1749227441186,-4664.58,0.00028383,5]
[364745008,1749227441195,-573.94,0.00028383,5]
[364745009,1749227441205,-536.17318438,0.00028383,5]
[364745010,1749227441215,-1107.97,0.00028383,5]
[364745011,1749227441225,-4442.11,0.00028383,5]
[364745012,1749227441235,-757.84,0.00028383,5]
[364745013,1749227441245,-480.0,0.00028383,5]
[364745014,1749227441256,-1235.4,0.00028383,5]
[364745015,1749227441266,-879.42,0.00028383,5]
[364745016,1749227441275,-1063.27,0.00028383,5]
[364745017,1749227441286,-707.79,0.00028383,2]
[364745018,1749227441295,-2227.4,0.00028383,5]
[364745019,1749227441307,-884.44,0.00028383,5]
[364745020,1749227441317,-949.13,0.00028383,2]
[364745021,1749227441327,-480.0,0.00028383,5]
[364745022,1749227441338,-1185.65,0.00028383,5]
[364745023,1749227441349,-785.68,0.00028383,5]
[364745024,1749227441359,-3588.55519907,0.00028413,2]
[364745025,1749227441369,-1000.0,0.00028463,2]
[364745026,1749227441380,-1852.42,0.0002848,2]
[364745027,1749227441390,-151.0,0.0002848,7]
[364745028,1749227441400,-151.0,0.0002848,7]
[364745029,1749227441410,-154.14,0.00028514,2]
[364745030,1749227441421,-723.0,0.00028528,2]
[364745031,1749227441431,-4587.21,0.00028547,5]
[364745032,1749227441441,-1698.9,0.00028547,5]
[364745033,1749227441451,-795.67,0.00028547,5]
[364745034,1749227441461,-1782.25,0.00028547,5]
[364745035,1749227441471,-897.82,0.00028547,5]
[364745036,1749227441481,-950.52,0.00028547,5]
[364745037,1749227441492,-1314.64,0.00028547,5]
[364745038,1749227441502,-808.41,0.00028547,5]
[364745039,1749227441512,-4664.58,0.00028547,5]
[364745040,1749227441522,-573.94,0.00028547,5]
[364745041,1749227441532,-1107.97,0.00028547,5]
[364745042,1749227441542,-4442.11,0.00028547,5]
[364745043,1749227441551,-757.84,0.00028547,5]
[364745044,1749227441562,-480.0,0.00028547,5]
[364745045,1749227441572,-1235.4,0.00028547,5]
[364745046,1749227441582,-879.42,0.00028547,5]
[364745047,1749227441592,-1063.27,0.00028547,5]
[364745048,1749227441602,-707.79,0.00028547,2]
[364745049,1749227441612,-2227.4,0.00028547,5]
[364745050,1749227441622,-884.44,0.00028547,5]
[364745051,1749227441632,-949.13,0.00028547,2]
[364745052,1749227441642,-480.0,0.00028547,5]
[364745053,1749227441652,-1185.65,0.00028547,5]
[364745054,1749227441663,-785.68,0.00028547,5]
[364745055,1749227441673,-200.0,0.00028574,2]
[364745056,1749227441683,-500.0,0.00028599,2]
[364745057,1749227441694,-824.73,0.00028603,2]
[364745058,1749227441703,-2244.87287491,0.00028641,2]
[364745059,1749227441714,-150.0,0.00028648,7]
[364745060,1749227441724,-726.86776214,0.00028693,19]
[364745061,1749227441734,-4587.21,0.00028712,5]
[364745062,1749227441744,-1698.9,0.00028712,5]
[364745063,1749227441754,-795.67,0.00028712,5]
[364745064,1749227441765,-1782.25,0.00028712,5]
[364745065,1749227441776,-897.82,0.00028712,5]
[364745066,1749227441786,-950.52,0.00028712,5]
[364745067,1749227441795,-1314.64,0.00028712,5]
[364745068,1749227441808,-808.41,0.00028712,5]
[364745069,1749227441818,-4664.58,0.00028712,5]
[364745070,1749227441830,-573.94,0.00028712,5]
[364745071,1749227441840,-1107.97,0.00028712,5]
[364745072,1749227441851,-4442.11,0.00028712,5]
[364745073,1749227441861,-757.84,0.00028712,5]
[364745074,1749227441871,-480.0,0.00028712,5]
[364745075,1749227441881,-1235.4,0.00028712,5]
[364745076,1749227441891,-879.42,0.00028712,5]
[364745077,1749227441901,-1063.27,0.00028712,5]
[364745078,1749227441911,-707.79,0.00028712,2]
[364745079,1749227441921,-2227.4,0.00028712,5]
[364745080,1749227441933,-884.44,0.00028712,5]
[364745081,1749227441943,-949.13,0.00028712,2]
[364745082,1749227441953,-480.0,0.00028712,5]
[364745083,1749227441963,-151.0,0.00028712,2]
[364745084,1749227441974,-151.0,0.00028712,2]
[364745085,1749227441984,-151.0,0.00028712,2]
[364745086,1749227441994,-151.0,0.00028712,2]
[364745087,1749227442003,-151.0,0.00028712,2]
[364745088,1749227442013,-151.0,0.00028712,2]
[364745089,1749227442023,-151.0,0.00028712,2]
[364745090,1749227442033,-151.0,0.00028712,2]
[364745091,1749227442043,-151.0,0.00028712,2]
[364745092,1749227442052,-151.0,0.00028712,2]
[364745093,1749227442062,-151.0,0.00028712,2]
[364745094,1749227442071,-151.0,0.00028712,2]
[364745095,1749227442081,-151.0,0.00028712,2]
[364745096,1749227442091,-151.0,0.00028712,2]
[364745097,1749227442101,-151.0,0.00028712,2]
[364745098,1749227442110,-151.0,0.00028712,2]
[364745099,1749227442119,-151.0,0.00028712,2]
[364745100,1749227442130,-1185.65,0.00028712,5]
[364745101,1749227442140,-151.0,0.00028712,2]
[364745102,1749227442151,-151.0,0.00028712,2]
[364745103,1749227442161,-151.0,0.00028712,2]
[364745104,1749227442170,-151.0,0.00028712,2]
[364745105,1749227442180,-785.68,0.00028712,5]
[364745106,1749227442190,-151.0,0.00028712,2]
[364745107,1749227442200,-151.0,0.00028712,2]
[364745108,1749227442211,-151.0,0.00028712,2]
[364745109,1749227442221,-151.0,0.00028712,2]
[364745110,1749227442231,-151.0,0.00028712,2]
[364745111,1749227442245,-151.0,0.00028712,2]
[364745112,1749227442256,-151.0,0.00028712,2]
[364745113,1749227442266,-151.0,0.00028712,2]
[364745114,1749227442277,-151.0,0.00028712,2]
[364745115,1749227442287,-207.4,0.00028748,2]
[364745116,1749227442298,-393.1,0.00028765,2]
[364745117,1749227442309,-830.06,0.00028765,2]
[364745121,1749227442599,-150.99,0.00028765,2]
[364745124,1749227442625,-150.99,0.00028765,2]
[364745126,1749227442635,-4273.28,0.00028765,2]
[364745128,1749227442645,-999.99,0.00028765,2]
[364745130,1749227442654,-2472.31,0.00028765,2]
[364745131,1749227442664,-1154.2,0.00028765,2]
[364745132,1749227442674,-5545.65,0.00028765,2]
[364745133,1749227442684,-271.12,0.00028765,2]
[364745134,1749227442693,-500.0,0.00028767,2]
[364745136,1749227442703,-500.0,0.00028767,2]
[364745137,1749227442712,-500.0,0.00028767,2]
[364745138,1749227442721,-589.96831105,0.00028767,2]
[364745139,1749227442731,-500.0,0.00028767,2]
[364745140,1749227442740,-500.0,0.00028767,2]
[364745141,1749227442750,-464.56910012,0.00028767,2]
[364745142,1749227442760,-500.0,0.00028767,2]
[364745143,1749227442770,-500.0,0.00028767,2]
[364745144,1749227442779,-500.0,0.00028767,2]
[364745145,1749227442789,-500.0,0.00028767,2]
[364745146,1749227442799,-500.0,0.00028767,2]
[364745147,1749227442811,-500.0,0.00028767,2]
[364745148,1749227442821,-500.0,0.00028767,2]
[364745149,1749227442831,-500.0,0.00028767,2]
[364745150,1749227442842,-287.9783724,0.00028767,2]
[364745151,1749227442851,-500.0,0.00028767,2]
[364745152,1749227442860,-500.0,0.00028767,2]
[364745153,1749227442870,-500.0,0.00028767,2]
[364745154,1749227442881,-500.0,0.00028767,2]
[364745155,1749227442891,-500.0,0.00028767,2]
[364745156,1749227442901,-500.0,0.00028767,2]
[364745157,1749227442910,-500.0,0.00028767,2]
[364745158,1749227442920,-500.0,0.00028767,2]
[364745159,1749227442930,-500.0,0.00028767,2]
[364745160,1749227442942,-161.18264395,0.00028784,2]
[364745161,1749227442951,-1048.26,0.00028784,2]
[364745162,1749227442961,-250.0,0.00028827,2]
[364745163,1749227442978,-12079.66,0.00028847,2]
[364745164,1749227442989,-1000.0,0.00028849,2]
[364745165,1749227443004,-151.0,0.00028849,2]
[364745166,1749227443014,-800.0,0.00028849,2]
[364745167,1749227443023,-594.03643909,0.00028849,2]
[364745168,1749227443032,-500.0,0.00028849,2]
[364745169,1749227443042,-151.0,0.00028849,2]
[364745170,1749227443051,-500.0,0.00028849,2]
[364745171,1749227443061,-151.0,0.00028849,2]
[364745173,1749227443070,-500.0,0.00028849,2]
[364745174,1749227443080,-230.32,0.00028849,2]
[364745175,1749227443089,-151.0,0.00028849,2]
[364745176,1749227443099,-151.0,0.00028849,2]
[364745177,1749227443109,-329.0,0.00028865,2]
[364745178,1749227443118,-6544.91833211,0.00028865,2]
[364745180,1749227443128,-3114.45,0.00028865,7]
[364745181,1749227443137,-23900.0,0.00028866,2]
[364745183,1749227443147,-4587.21,0.00028876,5]
[364745184,1749227443156,-1698.9,0.00028876,5]
[364745186,1749227443165,-795.67,0.00028876,5]
[364745188,1749227443175,-1782.25,0.00028876,5]
[364745190,1749227443184,-897.82,0.00028876,5]
[364745192,1749227443193,-950.52,0.00028876,5]
[364745193,1749227443202,-1314.64,0.00028876,5]
[364745194,1749227443212,-808.41,0.00028876,5]
[364745196,1749227443221,-4664.58,0.00028876,5]
[364745198,1749227443230,-573.94,0.00028876,5]
[364745200,1749227443240,-1107.97,0.00028876,5]
[364745202,1749227443249,-4442.11,0.00028876,5]
[364745203,1749227443259,-757.84,0.00028876,5]
[364745204,1749227443268,-480.0,0.00028876,5]
[364745205,1749227443279,-1235.4,0.00028876,5]
[364745206,1749227443288,-879.42,0.00028876,5]
[364745207,1749227443298,-1063.27,0.00028876,5]
[364745208,1749227443307,-707.79,0.00028876,2]
[364745209,1749227443319,-2227.4,0.00028876,5]
[364745210,1749227443329,-884.44,0.00028876,5]
[364745211,1749227443338,-949.13,0.00028876,2]
[364745212,1749227443350,-480.0,0.00028876,5]
[364745213,1749227443359,-1185.65,0.00028876,5]
[364745214,1749227443369,-785.68,0.00028876,5]
[364745215,1749227443378,-1787.1,0.00028876,2]
[364745216,1749227443387,-162.05084622,0.00028904,2]
[364745217,1749227443397,-3588.55519907,0.00028916,2]
[364745218,1749227443406,-4538.23268026,0.00029,2]
[364745219,1749227443415,-166.67,0.00029011,2]
[364745220,1749227443424,-4587.21,0.00029041,5]
[364745221,1749227443433,-1698.9,0.00029041,5]
[364745222,1749227443442,-795.67,0.00029041,5]
[364745223,1749227443451,-1782.25,0.00029041,5]
[364745224,1749227443461,-897.82,0.00029041,5]
[364745225,1749227443470,-950.52,0.00029041,5]
[364745226,1749227443479,-1314.64,0.00029041,5]
[364745227,1749227443488,-808.41,0.00029041,5]
[364745228,1749227443498,-4664.58,0.00029041,5]
[364745229,1749227443508,-573.94,0.00029041,5]
[364745230,1749227443517,-1107.97,0.00029041,5]
[364745231,1749227443527,-4442.11,0.00029041,5]
[364745232,1749227443538,-757.84,0.00029041,5]
[364745233,1749227443548,-480.0,0.00029041,5]
[364745234,1749227443559,-1235.4,0.00029041,5]
[364745235,1749227443568,-879.42,0.00029041,5]
[364745236,1749227443579,-1063.27,0.00029041,5]
[364745237,1749227443588,-707.79,0.00029041,2]
[364745238,1749227443598,-2227.4,0.00029041,5]
[364745239,1749227443607,-884.44,0.00029041,5]
[364745240,1749227443616,-949.13,0.00029041,2]
[364745241,1749227443625,-480.0,0.00029041,5]
[364745242,1749227443634,-1185.65,0.00029041,5]
[364745243,1749227443644,-785.68,0.00029041,5]
[364745244,1749227443658,-163.2,0.00029078,2]
[364745245,1749227443668,-726.86776214,0.00029141,20]
[364745246,1749227443677,-4587.21,0.00029205,5]
[364745247,1749227443687,-1698.9,0.00029205,5]
[364745248,1749227443696,-795.67,0.00029205,5]
[364745249,1749227443706,-1782.25,0.00029205,5]
[364745250,1749227443715,-897.82,0.00029205,5]
[364745251,1749227443725,-950.52,0.00029205,5]